[Event "December 12 Early 2023"]
[Site "https://www.chess.com"]
[Date "2023.12.12"]
[Round "4"]
[White "Kuchava, Ana"]
[Black "YurasovMat-2012"]
[Result "0-1"]
[Board "203"]
[TimeControl "180+1"]
[WhiteFideId "13605348"]
[WhiteElo "2210"]
[BlackElo "2445"]
[WhiteTeam "GEO"]
[WhiteClock "0:00:00"]
[BlackClock "0:00:34"]

1. d4 {[%clk 0:03:00]}  d5 {[%clk 0:02:56]} 2. c4 {[%clk 0:02:59]}  c6 {[%clk 0:02:56]} 3. Nf3 {[%clk 0:02:56]}  Nf6 {[%clk 0:02:56]} 4. Qb3 {[%clk 0:02:49]}  dxc4 {[%clk 0:02:51]} 5. Qxc4 {[%clk 0:02:44]}  Bf5 {[%clk 0:02:50]} 6. g3 {[%clk 0:02:42]}  e6 {[%clk 0:02:50]} 7. Bg2 {[%clk 0:02:33]}  Nbd7 {[%clk 0:02:47]} 8. O-O {[%clk 0:02:28]}  Be7 {[%clk 0:02:42]} 9. Nc3 {[%clk 0:02:26]}  O-O {[%clk 0:02:40]} 10. Re1 {[%clk 0:02:13]}  Nb6 {[%clk 0:02:39]} 11. Qb3 {[%clk 0:02:11]}  Ne4 {[%clk 0:02:38]} 12. Bf4 {[%clk 0:02:05]}  Nxc3 {[%clk 0:02:36]} 13. bxc3 {[%clk 0:02:03]}  Be4 {[%clk 0:02:36]} 14. a4 {[%clk 0:01:57]}  Qd5 {[%clk 0:02:34]} 15. Qxd5 {[%clk 0:01:44]}  cxd5 {[%clk 0:02:33]} 16. Ne5 {[%clk 0:01:35]}  Bxg2 {[%clk 0:02:32]} 17. Kxg2 {[%clk 0:01:36]}  f6 {[%clk 0:02:30]} 18. Nd3 {[%clk 0:01:33]}  Rac8 {[%clk 0:02:28]} 19. a5 {[%clk 0:01:26]}  Nc4 {[%clk 0:02:26]} 20. Reb1 {[%clk 0:01:24]}  b6 {[%clk 0:02:25]} 21. axb6 {[%clk 0:01:19]}  axb6 {[%clk 0:02:26]} 22. Ra7 {[%clk 0:01:19]}  Rfe8 {[%clk 0:02:25]} 23. Bc7 {[%clk 0:01:06]}  Bd8 {[%clk 0:02:13]} 24. Bxd8 {[%clk 0:01:00]}  Rexd8 {[%clk 0:02:14]} 25. e3 {[%clk 0:00:50]}  Ra8 {[%clk 0:02:11]} 26. Rba1 {[%clk 0:00:46]}  Rac8 {[%clk 0:02:07]} 27. Re7 {[%clk 0:00:31]}  Re8 {[%clk 0:02:05]} 28. Raa7 {[%clk 0:00:29]}  Rxe7 {[%clk 0:01:56]} 29. Rxe7 {[%clk 0:00:30]}  Kf8 {[%clk 0:01:54]} 30. Rb7 {[%clk 0:00:21]}  Kg8 {[%clk 0:01:45]} 31. Nf4 {[%clk 0:00:17]}  Re8 {[%clk 0:01:37]} 32. Nh5 {[%clk 0:00:16]}  Rf8 {[%clk 0:01:25]} 33. Rxg7+ {[%clk 0:00:15]}  Kh8 {[%clk 0:01:24]} 34. Re7 {[%clk 0:00:16]}  e5 {[%clk 0:01:11]} 35. Rd7 {[%clk 0:00:10]}  f5 {[%clk 0:01:01]} 36. Rxd5 {[%clk 0:00:09]}  e4 {[%clk 0:00:59]} 37. Rd7 {[%clk 0:00:08]}  Nd2 {[%clk 0:00:59]} 38. Nf4 {[%clk 0:00:08]}  Nf3 {[%clk 0:00:56]} 39. Rb7 {[%clk 0:00:08]}  Ra8 {[%clk 0:00:55]} 40. Rxb6 {[%clk 0:00:06]}  Ra1 {[%clk 0:00:55]} 41. h4 {[%clk 0:00:03]}  Rg1+ {[%clk 0:00:48]} 42. Kh3 {[%clk 0:00:03]}  Kg8 {[%clk 0:00:46]} 43. Rb7 {[%clk 0:00:02]}  Rf1 {[%clk 0:00:42]} 44. Kg2 {[%clk 0:00:02]}  Rc1 {[%clk 0:00:40]} 45. d5 {[%clk 0:00:01]}  Rg1+ {[%clk 0:00:36]} 46. Kh3 {[%clk 0:00:01]}  Ne5 {[%clk 0:00:36]} 47. d6 {[%clk 0:00:00]}  Rd1 {[%clk 0:00:34]} 0-1

[Event "December 12 Early 2023"]
[Site "https://www.chess.com"]
[Date "2023.12.12"]
[Round "4"]
[White "Rosenberg, Evan S"]
[Black "Guzman Lozano, Campo Elias"]
[Result "1/2-1/2"]
[Board "206"]
[TimeControl "180+1"]
[WhiteFideId "2019299"]
[BlackFideId "4403746"]
[WhiteElo "2386"]
[BlackElo "2186"]
[WhiteTeam "USA"]
[BlackTeam "COL"]
[WhiteClock "0:00:38"]
[BlackClock "0:01:22"]

1. c4 {[%clk 0:03:00]}  e6 {[%clk 0:02:58]} 2. Nf3 {[%clk 0:02:59]}  d5 {[%clk 0:02:57]} 3. d4 {[%clk 0:02:51]}  c6 {[%clk 0:02:57]} 4. g3 {[%clk 0:02:49]}  Be7 {[%clk 0:02:57]} 5. Bg2 {[%clk 0:02:48]}  Nf6 {[%clk 0:02:57]} 6. O-O {[%clk 0:02:48]}  O-O {[%clk 0:02:56]} 7. Nc3 {[%clk 0:02:46]}  Na6 {[%clk 0:02:55]} 8. a3 {[%clk 0:02:36]}  dxc4 {[%clk 0:02:54]} 9. Ne5 {[%clk 0:02:35]}  Nc7 {[%clk 0:02:50]} 10. Nxc4 {[%clk 0:02:32]}  Ncd5 {[%clk 0:02:46]} 11. e4 {[%clk 0:02:31]}  Nxc3 {[%clk 0:02:45]} 12. bxc3 {[%clk 0:02:32]}  a5 {[%clk 0:02:36]} 13. a4 {[%clk 0:02:29]}  Ne8 {[%clk 0:02:29]} 14. Rb1 {[%clk 0:02:26]}  Nd6 {[%clk 0:02:28]} 15. Nb6 {[%clk 0:02:25]}  Ra6 {[%clk 0:02:23]} 16. Nxc8 {[%clk 0:02:14]}  Qxc8 {[%clk 0:02:18]} 17. e5 {[%clk 0:02:12]}  Nc4 {[%clk 0:02:11]} 18. Qd3 {[%clk 0:02:07]}  Nb6 {[%clk 0:02:07]} 19. Be4 {[%clk 0:01:54]}  g6 {[%clk 0:02:01]} 20. Bh6 {[%clk 0:01:52]}  Rd8 {[%clk 0:02:00]} 21. Qc2 {[%clk 0:01:49]}  Nd5 {[%clk 0:01:55]} 22. Bd3 {[%clk 0:01:46]}  Rb6 {[%clk 0:01:54]} 23. h4 {[%clk 0:01:37]}  c5 {[%clk 0:01:48]} 24. Qd2 {[%clk 0:01:03]}  cxd4 {[%clk 0:01:42]} 25. cxd4 {[%clk 0:01:03]}  Rxb1 {[%clk 0:01:42]} 26. Rxb1 {[%clk 0:00:57]}  Bb4 {[%clk 0:01:35]} 27. Qg5 {[%clk 0:00:46]}  Be7 {[%clk 0:01:32]} 28. Qd2 {[%clk 0:00:38]}  Bb4 {[%clk 0:01:22]} 29. Qg5 {[%clk 0:00:38]}  Be7 {[%clk 0:01:22]} 30. Qd2 {[%clk 0:00:38]} 1/2-1/2

[Event "December 12 Early 2023"]
[Site "https://www.chess.com"]
[Date "2023.12.12"]
[Round "4"]
[White "Fernandez Hernandez, Gerardo"]
[Black "La Villa Rivas, Marlon Javier"]
[Result "1-0"]
[Board "207"]
[TimeControl "180+1"]
[WhiteFideId "2207400"]
[BlackFideId "3519546"]
[WhiteElo "2176"]
[BlackElo "2354"]
[WhiteTeam "ESP"]
[BlackTeam "CUB"]
[WhiteClock "0:00:26"]
[BlackClock "0:00:21"]

1. e4 {[%clk 0:03:00]}  c5 {[%clk 0:02:59]} 2. d3 {[%clk 0:03:01]}  Nc6 {[%clk 0:02:57]} 3. g3 {[%clk 0:03:01]}  g6 {[%clk 0:02:57]} 4. Bg2 {[%clk 0:03:01]}  Bg7 {[%clk 0:02:58]} 5. f4 {[%clk 0:03:02]}  d6 {[%clk 0:02:58]} 6. Nf3 {[%clk 0:03:02]}  e6 {[%clk 0:02:59]} 7. O-O {[%clk 0:03:03]}  Nge7 {[%clk 0:03:00]} 8. c3 {[%clk 0:03:03]}  O-O {[%clk 0:03:00]} 9. Be3 {[%clk 0:03:03]}  b5 {[%clk 0:02:58]} 10. d4 {[%clk 0:03:03]}  cxd4 {[%clk 0:02:57]} 11. cxd4 {[%clk 0:03:04]}  d5 {[%clk 0:02:56]} 12. e5 {[%clk 0:03:04]}  Nf5 {[%clk 0:02:53]} 13. Bf2 {[%clk 0:03:04]}  a5 {[%clk 0:02:52]} 14. Nc3 {[%clk 0:03:02]}  b4 {[%clk 0:02:51]} 15. Na4 {[%clk 0:03:00]}  Ba6 {[%clk 0:02:50]} 16. Re1 {[%clk 0:03:00]}  Bb5 {[%clk 0:02:48]} 17. Nc5 {[%clk 0:02:53]}  h5 {[%clk 0:02:44]} 18. h3 {[%clk 0:02:52]}  a4 {[%clk 0:02:30]} 19. g4 {[%clk 0:02:36]}  hxg4 {[%clk 0:02:29]} 20. hxg4 {[%clk 0:02:37]}  Nfe7 {[%clk 0:02:15]} 21. Qd2 {[%clk 0:02:14]}  Qa5 {[%clk 0:02:04]} 22. Nb7 {[%clk 0:02:06]}  Qb6 {[%clk 0:01:56]} 23. Nc5 {[%clk 0:02:03]}  Ra7 {[%clk 0:01:51]} 24. Bh4 {[%clk 0:01:59]}  Nc8 {[%clk 0:01:45]} 25. Bf6 {[%clk 0:01:55]}  Bxf6 {[%clk 0:01:26]} 26. exf6 {[%clk 0:01:55]}  Qd8 {[%clk 0:01:14]} 27. g5 {[%clk 0:01:52]}  Nd6 {[%clk 0:01:12]} 28. Qf2 {[%clk 0:01:20]}  Nf5 {[%clk 0:01:09]} 29. Bh3 {[%clk 0:01:14]}  Nce7 {[%clk 0:01:05]} 30. Qh2 {[%clk 0:00:46]}  Re8 {[%clk 0:00:51]} 31. Kg2 {[%clk 0:00:41]}  Kf8 {[%clk 0:00:39]} 32. Bxf5 {[%clk 0:00:40]}  Ng8 {[%clk 0:00:21]} 33. Qh8 {[%clk 0:00:26]} 1-0

[Event "December 12 Early 2023"]
[Site "https://www.chess.com"]
[Date "2023.12.12"]
[Round "4"]
[White "Yushko, Olga"]
[Black "Georg, Heinz"]
[Result "0-1"]
[Board "208"]
[TimeControl "180+1"]
[WhiteFideId "14114500"]
[BlackFideId "4607295"]
[WhiteElo "2117"]
[BlackElo "2350"]
[WhiteTeam "UKR"]
[BlackTeam "GER"]
[WhiteClock "0:00:46"]
[BlackClock "0:00:17"]

1. d4 {[%clk 0:02:57]}  f5 {[%clk 0:02:59]} 2. g3 {[%clk 0:02:57]}  Nf6 {[%clk 0:02:58]} 3. Bg2 {[%clk 0:02:58]}  g6 {[%clk 0:02:59]} 4. Nh3 {[%clk 0:02:58]}  Bg7 {[%clk 0:02:59]} 5. O-O {[%clk 0:02:59]}  O-O {[%clk 0:02:59]} 6. Nd2 {[%clk 0:02:59]}  d5 {[%clk 0:02:58]} 7. f3 {[%clk 0:02:59]}  c5 {[%clk 0:02:54]} 8. c3 {[%clk 0:02:59]}  cxd4 {[%clk 0:02:53]} 9. cxd4 {[%clk 0:02:56]}  Nc6 {[%clk 0:02:53]} 10. e3 {[%clk 0:02:52]}  h6 {[%clk 0:02:53]} 11. Nf2 {[%clk 0:02:51]}  b6 {[%clk 0:02:44]} 12. Re1 {[%clk 0:02:51]}  e5 {[%clk 0:02:39]} 13. Nb3 {[%clk 0:02:49]}  e4 {[%clk 0:02:38]} 14. fxe4 {[%clk 0:02:45]}  fxe4 {[%clk 0:02:38]} 15. Bd2 {[%clk 0:02:44]}  Qd6 {[%clk 0:02:29]} 16. Rc1 {[%clk 0:02:38]}  Bd7 {[%clk 0:02:27]} 17. a3 {[%clk 0:02:16]}  a5 {[%clk 0:02:21]} 18. Qe2 {[%clk 0:02:15]}  a4 {[%clk 0:02:20]} 19. Na1 {[%clk 0:02:15]}  g5 {[%clk 0:02:13]} 20. Nc2 {[%clk 0:02:14]}  Rf7 {[%clk 0:02:02]} 21. Nb4 {[%clk 0:02:14]}  Na5 {[%clk 0:01:59]} 22. Bc3 {[%clk 0:01:46]}  Nc4 {[%clk 0:01:57]} 23. Qd1 {[%clk 0:01:44]}  b5 {[%clk 0:01:53]} 24. Bf1 {[%clk 0:01:35]}  Raf8 {[%clk 0:01:48]} 25. Bxc4 {[%clk 0:01:30]}  bxc4 {[%clk 0:01:44]} 26. Re2 {[%clk 0:01:30]}  Ng4 {[%clk 0:01:42]} 27. Nxg4 {[%clk 0:01:29]}  Bxg4 {[%clk 0:01:41]} 28. Nc2 {[%clk 0:01:29]}  Bxe2 {[%clk 0:01:39]} 29. Qxe2 {[%clk 0:01:30]}  Qf6 {[%clk 0:01:26]} 30. Bb4 {[%clk 0:01:25]}  Rb8 {[%clk 0:01:21]} 31. Ne1 {[%clk 0:01:20]}  Qf5 {[%clk 0:01:13]} 32. Bd6 {[%clk 0:01:14]}  Rb3 {[%clk 0:01:12]} 33. Bb4 {[%clk 0:01:14]}  g4 {[%clk 0:01:09]} 34. Ng2 {[%clk 0:01:13]}  Qf3 {[%clk 0:01:07]} 35. Re1 {[%clk 0:01:10]}  Qxe2 {[%clk 0:01:03]} 36. Rxe2 {[%clk 0:01:10]}  Rf3 {[%clk 0:00:55]} 37. Bc3 {[%clk 0:01:07]}  Bf8 {[%clk 0:00:46]} 38. Nf4 {[%clk 0:01:06]}  Bxa3 {[%clk 0:00:45]} 39. Nxd5 {[%clk 0:01:06]}  Bd6 {[%clk 0:00:41]} 40. Be1 {[%clk 0:00:56]}  a3 {[%clk 0:00:38]} 41. bxa3 {[%clk 0:00:57]}  Bxa3 {[%clk 0:00:38]} 42. Nc3 {[%clk 0:00:55]}  Bb4 {[%clk 0:00:36]} 43. Nxe4 {[%clk 0:00:54]}  Bxe1 {[%clk 0:00:33]} 44. Rxe1 {[%clk 0:00:55]}  Rbxe3 {[%clk 0:00:32]} 45. Rxe3 {[%clk 0:00:52]}  Rxe3 {[%clk 0:00:32]} 46. Nf6+ {[%clk 0:00:53]}  Kf7 {[%clk 0:00:32]} 47. Nxg4 {[%clk 0:00:53]}  Re2 {[%clk 0:00:28]} 48. Kf1 {[%clk 0:00:52]}  Rc2 {[%clk 0:00:25]} 49. Nxh6+ {[%clk 0:00:51]}  Ke6 {[%clk 0:00:24]} 50. Ng4 {[%clk 0:00:51]}  c3 {[%clk 0:00:20]} 51. d5+ {[%clk 0:00:50]}  Kd6 {[%clk 0:00:18]} 52. Ne3 {[%clk 0:00:50]}  Rd2 {[%clk 0:00:17]} 53. h4 {[%clk 0:00:50]}  c2 {[%clk 0:00:17]} 54. Nxc2 {[%clk 0:00:50]}  Rxc2 {[%clk 0:00:17]} 55. g4 {[%clk 0:00:46]}  Rc4 {[%clk 0:00:17]} 0-1

[Event "December 12 Early 2023"]
[Site "https://www.chess.com"]
[Date "2023.12.12"]
[Round "4"]
[White "Lakshmi C"]
[Black "Bregu, Riza"]
[Result "0-1"]
[Board "210"]
[TimeControl "180+1"]
[WhiteFideId "25035347"]
[BlackFideId "4701739"]
[WhiteElo "2068"]
[BlackElo "2346"]
[WhiteTeam "IND"]
[BlackTeam "ALB"]
[WhiteClock "0:00:00"]
[BlackClock "0:01:10"]

1. e4 {[%clk 0:02:53]}  e5 {[%clk 0:02:59]} 2. Nf3 {[%clk 0:02:48]}  Nf6 {[%clk 0:02:59]} 3. d4 {[%clk 0:02:42]}  Nxe4 {[%clk 0:02:59]} 4. Bd3 {[%clk 0:02:39]}  d5 {[%clk 0:02:59]} 5. Nxe5 {[%clk 0:02:39]}  Bd6 {[%clk 0:02:59]} 6. O-O {[%clk 0:02:34]}  O-O {[%clk 0:02:59]} 7. f3 {[%clk 0:02:22]}  Nc5 {[%clk 0:02:54]} 8. Re1 {[%clk 0:02:10]}  Ne6 {[%clk 0:02:51]} 9. c3 {[%clk 0:02:04]}  c5 {[%clk 0:02:51]} 10. dxc5 {[%clk 0:02:01]}  Bxc5+ {[%clk 0:02:49]} 11. Kh1 {[%clk 0:02:01]}  Qh4 {[%clk 0:02:46]} 12. Nd2 {[%clk 0:01:46]}  Bf2 {[%clk 0:02:46]} 13. Re2 {[%clk 0:01:46]}  Bg3 {[%clk 0:02:46]} 14. Nf1 {[%clk 0:01:45]}  Bxe5 {[%clk 0:02:24]} 15. Rxe5 {[%clk 0:01:44]}  Nc6 {[%clk 0:02:25]} 16. Rxd5 {[%clk 0:01:32]}  Nf4 {[%clk 0:02:18]} 17. g3 {[%clk 0:01:11]}  Nxd3 {[%clk 0:02:17]} 18. Qxd3 {[%clk 0:00:54]}  Qh3 {[%clk 0:02:16]} 19. Bf4 {[%clk 0:00:35]}  Be6 {[%clk 0:02:16]} 20. Rd6 {[%clk 0:00:34]}  Rad8 {[%clk 0:02:16]} 21. Rd1 {[%clk 0:00:25]}  Rxd6 {[%clk 0:01:54]} 22. Bxd6 {[%clk 0:00:24]}  Rd8 {[%clk 0:01:54]} 23. Qc2 {[%clk 0:00:19]}  Bd5 {[%clk 0:01:45]} 24. Qe2 {[%clk 0:00:08]}  Bxa2 {[%clk 0:01:28]} 25. c4 {[%clk 0:00:05]}  h6 {[%clk 0:01:26]} 26. Ne3 {[%clk 0:00:04]}  Bb3 {[%clk 0:01:16]} 27. Rd5 {[%clk 0:00:04]}  b5 {[%clk 0:01:10]} 28. Rxb5 {[%clk 0:00:00]}  Nd4 {[%clk 0:01:10]} 0-1

[Event "December 12 Early 2023"]
[Site "https://www.chess.com"]
[Date "2023.12.12"]
[Round "4"]
[White "Mesa Cruz, Juan Carlos"]
[Black "Perez Cruz, Adianet"]
[Result "0-1"]
[Board "211"]
[TimeControl "180+1"]
[WhiteFideId "6423400"]
[BlackFideId "3510115"]
[WhiteElo "2344"]
[BlackElo "2038"]
[WhiteTeam "DOM"]
[BlackTeam "CUB"]
[WhiteClock "0:00:00"]
[BlackClock "0:01:28"]

1. e4 {[%clk 0:02:56]}  c6 {[%clk 0:02:59]} 2. Nc3 {[%clk 0:02:54]}  d5 {[%clk 0:03:00]} 3. d4 {[%clk 0:02:55]}  dxe4 {[%clk 0:02:59]} 4. Nxe4 {[%clk 0:02:56]}  Nf6 {[%clk 0:02:59]} 5. Ng3 {[%clk 0:02:54]}  Bg4 {[%clk 0:02:58]} 6. Nf3 {[%clk 0:02:51]}  Bxf3 {[%clk 0:02:56]} 7. Qxf3 {[%clk 0:02:51]}  Qxd4 {[%clk 0:02:56]} 8. Bd3 {[%clk 0:02:51]}  e6 {[%clk 0:02:55]} 9. O-O {[%clk 0:02:51]}  Nbd7 {[%clk 0:02:54]} 10. Bf4 {[%clk 0:02:48]}  Be7 {[%clk 0:02:50]} 11. c3 {[%clk 0:02:45]}  Qb6 {[%clk 0:02:49]} 12. a4 {[%clk 0:02:43]}  Nd5 {[%clk 0:02:46]} 13. a5 {[%clk 0:02:34]}  Qd8 {[%clk 0:02:38]} 14. Bd2 {[%clk 0:02:33]}  N7f6 {[%clk 0:02:35]} 15. a6 {[%clk 0:02:30]}  b6 {[%clk 0:02:34]} 16. c4 {[%clk 0:02:29]}  Nc7 {[%clk 0:02:19]} 17. Qxc6+ {[%clk 0:02:28]}  Kf8 {[%clk 0:02:20]} 18. Rad1 {[%clk 0:02:02]}  Nce8 {[%clk 0:02:17]} 19. Bf4 {[%clk 0:01:56]}  Rc8 {[%clk 0:02:17]} 20. Qb7 {[%clk 0:01:54]}  Nd6 {[%clk 0:01:59]} 21. Qf3 {[%clk 0:01:20]}  g6 {[%clk 0:01:47]} 22. Bh6+ {[%clk 0:01:07]}  Kg8 {[%clk 0:01:44]} 23. b4 {[%clk 0:01:07]}  Qc7 {[%clk 0:01:42]} 24. c5 {[%clk 0:00:57]}  bxc5 {[%clk 0:01:41]} 25. bxc5 {[%clk 0:00:57]}  Nf5 {[%clk 0:01:41]} 26. Nxf5 {[%clk 0:00:51]}  exf5 {[%clk 0:01:41]} 27. Rfe1 {[%clk 0:00:49]}  Bxc5 {[%clk 0:01:38]} 28. Rc1 {[%clk 0:00:00]}  Qb6 {[%clk 0:01:28]} 0-1

[Event "December 12 Early 2023"]
[Site "https://www.chess.com"]
[Date "2023.12.12"]
[Round "4"]
[White "Sailer, Mike"]
[Black "Luukkonen, Tommi"]
[Result "1-0"]
[Board "212"]
[TimeControl "180+1"]
[WhiteFideId "2012901"]
[BlackFideId "501808"]
[WhiteElo "2035"]
[BlackElo "2338"]
[WhiteTeam "USA"]
[BlackTeam "FIN"]
[WhiteClock "0:00:03"]
[BlackClock "0:00:00"]

1. d4 {[%clk 0:03:00]}  Nf6 {[%clk 0:02:58]} 2. Bg5 {[%clk 0:02:56]}  e6 {[%clk 0:02:53]} 3. Nd2 {[%clk 0:02:55]}  h6 {[%clk 0:02:52]} 4. Bh4 {[%clk 0:02:55]}  g5 {[%clk 0:02:51]} 5. Bg3 {[%clk 0:02:55]}  d6 {[%clk 0:02:51]} 6. e3 {[%clk 0:02:54]}  Bg7 {[%clk 0:02:49]} 7. Bd3 {[%clk 0:02:53]}  Nc6 {[%clk 0:02:44]} 8. a3 {[%clk 0:02:51]}  Qe7 {[%clk 0:02:35]} 9. c4 {[%clk 0:02:48]}  b6 {[%clk 0:02:33]} 10. Ne2 {[%clk 0:02:44]}  Bb7 {[%clk 0:02:21]} 11. f3 {[%clk 0:02:44]}  h5 {[%clk 0:02:18]} 12. Nc3 {[%clk 0:02:30]}  h4 {[%clk 0:02:16]} 13. Bf2 {[%clk 0:02:30]}  h3 {[%clk 0:02:13]} 14. g4 {[%clk 0:01:49]}  a6 {[%clk 0:02:06]} 15. Rg1 {[%clk 0:01:37]}  O-O-O {[%clk 0:01:56]} 16. Qe2 {[%clk 0:01:37]}  Kb8 {[%clk 0:01:53]} 17. O-O-O {[%clk 0:01:35]}  Nd7 {[%clk 0:01:45]} 18. Kb1 {[%clk 0:01:31]}  Na5 {[%clk 0:01:38]} 19. c5 {[%clk 0:01:17]}  dxc5 {[%clk 0:01:34]} 20. Bxa6 {[%clk 0:01:16]}  cxd4 {[%clk 0:01:30]} 21. exd4 {[%clk 0:01:14]}  Ba8 {[%clk 0:01:29]} 22. Nde4 {[%clk 0:00:48]}  Nf6 {[%clk 0:01:19]} 23. Nxf6 {[%clk 0:00:47]}  Qxf6 {[%clk 0:01:12]} 24. Ne4 {[%clk 0:00:45]}  Qe7 {[%clk 0:01:11]} 25. Rd3 {[%clk 0:00:34]}  Bd5 {[%clk 0:01:08]} 26. Rc1 {[%clk 0:00:29]}  f5 {[%clk 0:01:06]} 27. gxf5 {[%clk 0:00:28]}  exf5 {[%clk 0:01:06]} 28. Nc3 {[%clk 0:00:25]}  Qxe2 {[%clk 0:01:03]} 29. Nxe2 {[%clk 0:00:25]}  Nb3 {[%clk 0:01:01]} 30. Rcc3 {[%clk 0:00:20]}  Rde8 {[%clk 0:00:59]} 31. Ng3 {[%clk 0:00:14]}  Na5 {[%clk 0:00:51]} 32. Nxf5 {[%clk 0:00:13]}  Bf6 {[%clk 0:00:51]} 33. Bg3 {[%clk 0:00:12]}  Ka7 {[%clk 0:00:46]} 34. Rxc7+ {[%clk 0:00:11]}  Kxa6 {[%clk 0:00:46]} 35. Nd6 {[%clk 0:00:10]}  Re2 {[%clk 0:00:29]} 36. b4 {[%clk 0:00:10]}  Ba2+ {[%clk 0:00:26]} 37. Kc1 {[%clk 0:00:10]}  b5 {[%clk 0:00:08]} 38. bxa5 {[%clk 0:00:10]}  Kxa5 {[%clk 0:00:08]} 39. Nc8 {[%clk 0:00:09]}  b4 {[%clk 0:00:03]} 40. Ra7+ {[%clk 0:00:08]}  Kb5 {[%clk 0:00:03]} 41. Rb7+ {[%clk 0:00:08]}  Kc4 {[%clk 0:00:03]} 42. Rd2 {[%clk 0:00:05]}  Rxd2 {[%clk 0:00:02]} 43. Kxd2 {[%clk 0:00:06]}  b3 {[%clk 0:00:02]} 44. Nd6+ {[%clk 0:00:05]}  Kd5 {[%clk 0:00:00]} 45. Nb5 {[%clk 0:00:03]} 1-0

[Event "December 12 Early 2023"]
[Site "https://www.chess.com"]
[Date "2023.12.12"]
[Round "4"]
[White "Harriott, Tyrell"]
[Black "Bongo Akanga Ndjila, Barthelemy"]
[Result "0-1"]
[Board "214"]
[TimeControl "180+1"]
[WhiteFideId "2086484"]
[BlackFideId "10609431"]
[WhiteElo "2333"]
[BlackElo "2012"]
[WhiteTeam "USA"]
[BlackTeam "GAB"]
[WhiteClock "0:00:00"]
[BlackClock "0:00:34"]

1. d4 {[%clk 0:03:00]}  d5 {[%clk 0:02:50]} 2. e3 {[%clk 0:02:54]}  Nf6 {[%clk 0:02:50]} 3. Bd3 {[%clk 0:02:50]}  Bg4 {[%clk 0:02:48]} 4. Ne2 {[%clk 0:02:47]}  e6 {[%clk 0:02:44]} 5. f4 {[%clk 0:02:44]}  Bd6 {[%clk 0:02:39]} 6. Nd2 {[%clk 0:02:43]}  c5 {[%clk 0:02:36]} 7. c3 {[%clk 0:02:42]}  Nc6 {[%clk 0:02:35]} 8. O-O {[%clk 0:02:37]}  Bf5 {[%clk 0:02:31]} 9. Nf3 {[%clk 0:02:28]}  Bxd3 {[%clk 0:02:29]} 10. Qxd3 {[%clk 0:02:25]}  Ne4 {[%clk 0:02:30]} 11. Nd2 {[%clk 0:02:19]}  f5 {[%clk 0:02:25]} 12. Nxe4 {[%clk 0:02:11]}  fxe4 {[%clk 0:02:23]} 13. Qd1 {[%clk 0:02:08]}  b6 {[%clk 0:02:22]} 14. f5 {[%clk 0:02:04]}  Qf6 {[%clk 0:02:18]} 15. fxe6 {[%clk 0:01:55]}  Qxe6 {[%clk 0:02:16]} 16. dxc5 {[%clk 0:01:50]}  bxc5 {[%clk 0:02:02]} 17. Qa4 {[%clk 0:01:45]}  Rc8 {[%clk 0:01:53]} 18. b4 {[%clk 0:01:42]}  cxb4 {[%clk 0:01:49]} 19. cxb4 {[%clk 0:01:38]}  Bxb4 {[%clk 0:01:45]} 20. Nd4 {[%clk 0:01:34]}  Qd6 {[%clk 0:01:38]} 21. Bb2 {[%clk 0:01:14]}  Bc5 {[%clk 0:01:25]} 22. Nf5 {[%clk 0:00:58]}  Qg6 {[%clk 0:00:58]} 23. Rac1 {[%clk 0:00:40]}  Bb6 {[%clk 0:00:42]} 24. Nxg7+ {[%clk 0:00:24]}  Kd7 {[%clk 0:00:39]} 25. Nf5 {[%clk 0:00:21]}  Rhf8 {[%clk 0:00:36]} 26. Ng3 {[%clk 0:00:09]}  Bxe3+ {[%clk 0:00:35]} 27. Kh1 {[%clk 0:00:00]}  Bxc1 {[%clk 0:00:34]} 0-1